[Event "*** SCC Grand Prix: Titled Tuesday Blitz"]
[Site "Chess.com"]
[Date "2020.07.07"]
[Round "6"]
[White "SiddharthGMJagadeesh"]
[Black "HanSchut"]
[Result "1-0"]
[WhiteElo "2440"]
[BlackElo "2295"]
[TimeControl "180+1"]
[EndTime "11:05:11 PDT"]
[Termination "SiddharthGMJagadeesh won on time"]

1. d4 {[%clk 0:03:00.9]} 1... Nf6 {[%clk 0:02:59]} 2. Nc3 {[%clk 0:03:00.6]}
2... d5 {[%clk 0:02:58.9]} 3. Bf4 {[%clk 0:03:00.1]} 3... e6 {[%clk 0:02:58.6]}
4. Nb5 {[%clk 0:02:57.3]} 4... Na6 {[%clk 0:02:52.4]} 5. e3 {[%clk 0:02:57.3]}
5... c6 {[%clk 0:02:42.1]} 6. Nc3 {[%clk 0:02:57.1]} 6... Nb8 {[%clk 0:02:30.4]}
7. Nf3 {[%clk 0:02:55.4]} 7... Bd6 {[%clk 0:02:30.3]} 8. Ne5 {[%clk 0:02:55.4]}
8... O-O {[%clk 0:02:27]} 9. Bd3 {[%clk 0:02:55.1]} 9... Nbd7 {[%clk 0:02:26.7]}
10. Nxc6 {[%clk 0:02:49.6]} 10... bxc6 {[%clk 0:02:23]} 11. Bxd6 {[%clk
0:02:49.2]} 11... Re8 {[%clk 0:02:23.7]} 12. O-O {[%clk 0:02:47.3]} 12... e5
{[%clk 0:02:24.1]} 13. dxe5 {[%clk 0:02:45.3]} 13... Nxe5 {[%clk 0:02:25]} 14.
Bxe5 {[%clk 0:02:45.9]} 14... Rxe5 {[%clk 0:02:24.8]} 15. Ne2 {[%clk 0:02:40.6]}
15... c5 {[%clk 0:02:20.1]} 16. c4 {[%clk 0:02:37.1]} 16... Bb7 {[%clk
0:02:19.7]} 17. Nf4 {[%clk 0:02:34.6]} 17... g5 {[%clk 0:02:06.9]} 18. Nh5
{[%clk 0:02:11.8]} 18... dxc4 {[%clk 0:01:49.4]} 19. Bxc4 {[%clk 0:02:08.7]}
19... Qe7 {[%clk 0:00:51.3]} 20. Nxf6+ {[%clk 0:02:03.1]} 20... Qxf6 {[%clk
0:00:51.3]} 21. Qb3 {[%clk 0:02:03.1]} 21... Re7 {[%clk 0:00:34]} 22. Rad1
{[%clk 0:01:58.6]} 22... Kg7 {[%clk 0:00:15.8]} 23. Bd5 {[%clk 0:01:58]} 23...
Rb8 {[%clk 0:00:15.3]} 24. Qc2 {[%clk 0:01:51.1]} 24... Ba6 {[%clk 0:00:09.3]}
25. Bc4 {[%clk 0:01:39.5]} 25... Bb7 {[%clk 0:00:09.6]} 26. b3 {[%clk
0:01:35.9]} 26... h5 {[%clk 0:00:09.8]} 27. Bd5 {[%clk 0:01:35]} 27... Ba6
{[%clk 0:00:10]} 28. Rfe1 {[%clk 0:01:34.7]} 28... h4 {[%clk 0:00:10]} 29. h3
{[%clk 0:01:33.6]} 29... Bc8 {[%clk 0:00:08.9]} 30. Qxc5 {[%clk 0:01:28.4]}
30... g4 {[%clk 0:00:06.9]} 31. hxg4 {[%clk 0:01:26.2]} 31... Bxg4 {[%clk
0:00:06.9]} 32. Rd4 {[%clk 0:01:26.9]} 1-0

[Event "*** SCC Grand Prix: Titled Tuesday Blitz"]
[Site "Chess.com"]
[Date "2020.07.07"]
[Round "6"]
[White "Alopekos"]
[Black "SCIM"]
[Result "1-0"]
[WhiteElo "2382"]
[BlackElo "2541"]
[TimeControl "180+1"]
[EndTime "11:05:12 PDT"]
[Termination "Alopekos won by resignation"]

1. e4 {[%clk 0:03:00.9]} 1... c5 {[%clk 0:02:59.5]} 2. Nc3 {[%clk 0:03:00.7]}
2... Nc6 {[%clk 0:02:58.8]} 3. Nge2 {[%clk 0:03:01.2]} 3... e6 {[%clk
0:02:57.5]} 4. d4 {[%clk 0:03:01.3]} 4... cxd4 {[%clk 0:02:58]} 5. Nxd4 {[%clk
0:03:02.2]} 5... Qc7 {[%clk 0:02:58.4]} 6. Be3 {[%clk 0:03:01.3]} 6... a6 {[%clk
0:02:58.1]} 7. Be2 {[%clk 0:03:01]} 7... Nf6 {[%clk 0:02:56.4]} 8. O-O {[%clk
0:03:01.3]} 8... Be7 {[%clk 0:02:56.6]} 9. f4 {[%clk 0:03:00.7]} 9... d6 {[%clk
0:02:54.4]} 10. Qe1 {[%clk 0:03:00.9]} 10... Nxd4 {[%clk 0:02:35.1]} 11. Bxd4
{[%clk 0:03:01.8]} 11... b5 {[%clk 0:02:29.1]} 12. a3 {[%clk 0:02:58.8]} 12...
Bb7 {[%clk 0:02:27.9]} 13. Bd3 {[%clk 0:02:54.6]} 13... e5 {[%clk 0:02:21.8]}
14. fxe5 {[%clk 0:02:51.8]} 14... dxe5 {[%clk 0:02:22.7]} 15. Qg3 {[%clk
0:02:52.2]} 15... Bc5 {[%clk 0:01:52]} 16. Bxc5 {[%clk 0:02:50.2]} 16... Qxc5+
{[%clk 0:01:52.9]} 17. Kh1 {[%clk 0:02:50.3]} 17... Nh5 {[%clk 0:01:42.3]} 18.
Qg5 {[%clk 0:02:27.1]} 18... g6 {[%clk 0:01:41.8]} 19. Nd5 {[%clk 0:02:12.4]}
19... Bxd5 {[%clk 0:01:13.3]} 20. Qxe5+ {[%clk 0:02:09.6]} 20... Kd7 {[%clk
0:01:13.2]} 21. Rxf7+ {[%clk 0:01:32.9]} 21... Bxf7 {[%clk 0:01:01.4]} 22. Qxc5
{[%clk 0:01:33.8]} 22... Rac8 {[%clk 0:00:59.2]} 23. Qa7+ {[%clk 0:01:23.6]}
23... Rc7 {[%clk 0:00:59.3]} 24. Qxa6 {[%clk 0:01:23.9]} 24... Ke7 {[%clk
0:00:55.7]} 25. Rf1 {[%clk 0:01:17.7]} 25... Be6 {[%clk 0:00:49.5]} 26. Qxb5
{[%clk 0:01:10.4]} 26... Rd8 {[%clk 0:00:43.1]} 27. Qg5+ {[%clk 0:00:38.5]}
27... Kd7 {[%clk 0:00:41.9]} 28. Bb5+ {[%clk 0:00:38.3]} 28... Kc8 {[%clk
0:00:40.6]} 29. Ba6+ {[%clk 0:00:38.8]} 29... Kd7 {[%clk 0:00:40.8]} 30. Rd1+
{[%clk 0:00:39.1]} 1-0

[Event "*** SCC Grand Prix: Titled Tuesday Blitz"]
[Site "Chess.com"]
[Date "2020.07.07"]
[Round "6"]
[White "Tekushka"]
[Black "Marty435"]
[Result "0-1"]
[WhiteElo "2363"]
[BlackElo "2517"]
[TimeControl "180+1"]
[EndTime "11:05:16 PDT"]
[Termination "Marty435 won on time"]

1. d4 {[%clk 0:03:00.9]} 1... d5 {[%clk 0:02:59.2]} 2. c4 {[%clk 0:03:00.6]}
2... Nc6 {[%clk 0:02:59.8]} 3. Nc3 {[%clk 0:02:58.9]} 3... Nf6 {[%clk
0:02:59.6]} 4. Nf3 {[%clk 0:02:58.5]} 4... e6 {[%clk 0:02:52.8]} 5. Bg5 {[%clk
0:02:47.3]} 5... Bb4 {[%clk 0:02:50.5]} 6. e3 {[%clk 0:02:43.5]} 6... h6 {[%clk
0:02:49.5]} 7. Bh4 {[%clk 0:02:31.1]} 7... g5 {[%clk 0:02:49.2]} 8. Bg3 {[%clk
0:02:31.3]} 8... Ne4 {[%clk 0:02:49.5]} 9. Qc2 {[%clk 0:02:22.9]} 9... h5 {[%clk
0:02:48.9]} 10. h4 {[%clk 0:00:59.7]} 10... g4 {[%clk 0:02:41.7]} 11. Nd2 {[%clk
0:00:57.7]} 11... Nxg3 {[%clk 0:02:40.7]} 12. fxg3 {[%clk 0:00:57.8]} 12... Qd6
{[%clk 0:02:33.2]} 13. Kf2 {[%clk 0:00:49.2]} 13... Rh6 {[%clk 0:02:28.5]} 14.
Ne2 {[%clk 0:00:28]} 14... e5 {[%clk 0:02:18.1]} 15. cxd5 {[%clk 0:00:23.3]}
15... Qxd5 {[%clk 0:02:10.5]} 16. Qe4 {[%clk 0:00:20.2]} 16... Rf6+ {[%clk
0:02:03.7]} 17. Kg1 {[%clk 0:00:19]} 17... Be6 {[%clk 0:01:58.6]} 18. Qxd5
{[%clk 0:00:17.5]} 18... Bxd5 {[%clk 0:01:59.5]} 19. Nb3 {[%clk 0:00:16.2]}
19... O-O-O {[%clk 0:01:57]} 20. a3 {[%clk 0:00:15.3]} 20... Bd6 {[%clk
0:01:50.4]} 21. Nc5 {[%clk 0:00:14.7]} 21... exd4 {[%clk 0:01:50.4]} 22. exd4
{[%clk 0:00:14.2]} 22... Bc4 {[%clk 0:01:48.1]} 23. b4 {[%clk 0:00:12.8]} 23...
Bxe2 {[%clk 0:01:45]} 24. Bxe2 {[%clk 0:00:13]} 24... Bxg3 {[%clk 0:01:44.8]}
25. Rf1 {[%clk 0:00:12]} 25... Rxf1+ {[%clk 0:01:39.2]} 26. Kxf1 {[%clk
0:00:12]} 26... Rxd4 {[%clk 0:01:38.7]} 27. Nd3 {[%clk 0:00:09.3]} 27... Rc4
{[%clk 0:01:32.9]} 28. Bd1 {[%clk 0:00:08]} 28... Re4 {[%clk 0:01:23.2]} 29. Be2
{[%clk 0:00:04.2]} 29... Nd4 {[%clk 0:01:23.5]} 30. Nc1 {[%clk 0:00:02.8]} 30...
Bf4 {[%clk 0:01:22]} 31. Bd3 {[%clk 0:00:02.5]} 31... Re3 {[%clk 0:01:17.3]} 32.
g3 {[%clk 0:00:01.1]} 32... Bxg3 {[%clk 0:01:16.6]} 0-1

[Event "*** SCC Grand Prix: Titled Tuesday Blitz"]
[Site "Chess.com"]
[Date "2020.07.07"]
[Round "6"]
[White "Tashik"]
[Black "SerGo055"]
[Result "0-1"]
[WhiteElo "2380"]
[BlackElo "2562"]
[TimeControl "180+1"]
[EndTime "11:05:18 PDT"]
[Termination "SerGo055 won by resignation"]

1. c4 {[%clk 0:03:00.6]} 1... Nf6 {[%clk 0:02:59.2]} 2. Nc3 {[%clk 0:03:00.2]}
2... c6 {[%clk 0:02:55.9]} 3. d4 {[%clk 0:02:55.6]} 3... d5 {[%clk 0:02:56.2]}
4. Nf3 {[%clk 0:02:56.2]} 4... e6 {[%clk 0:02:55]} 5. Bg5 {[%clk 0:02:56.1]}
5... dxc4 {[%clk 0:02:54.5]} 6. e4 {[%clk 0:02:55.1]} 6... b5 {[%clk 0:02:54.2]}
7. e5 {[%clk 0:02:54.8]} 7... h6 {[%clk 0:02:54.5]} 8. Bh4 {[%clk 0:02:55.4]}
8... g5 {[%clk 0:02:55.1]} 9. Nxg5 {[%clk 0:02:55.8]} 9... hxg5 {[%clk 0:02:56]}
10. Bxg5 {[%clk 0:02:56.4]} 10... Nbd7 {[%clk 0:02:56.2]} 11. g3 {[%clk
0:02:56.6]} 11... Bb7 {[%clk 0:02:56.6]} 12. Bg2 {[%clk 0:02:56.5]} 12... Qb6
{[%clk 0:02:52.3]} 13. exf6 {[%clk 0:02:56.6]} 13... O-O-O {[%clk 0:02:52.7]}
14. O-O {[%clk 0:02:57.1]} 14... Ne5 {[%clk 0:02:39.8]} 15. Qe2 {[%clk
0:02:50.6]} 15... Nd3 {[%clk 0:02:37]} 16. Be3 {[%clk 0:02:29.2]} 16... c5
{[%clk 0:02:35.7]} 17. dxc5 {[%clk 0:02:23.2]} 17... Bxc5 {[%clk 0:02:36]} 18.
Ne4 {[%clk 0:02:07.2]} 18... Bxe3 {[%clk 0:02:27]} 19. fxe3 {[%clk 0:02:06.3]}
19... Nxb2 {[%clk 0:01:31.7]} 20. Ng5 {[%clk 0:01:25.8]} 20... Bxg2 {[%clk
0:01:29.6]} 21. Qxg2 {[%clk 0:00:19.7]} 21... Qxe3+ {[%clk 0:01:18.9]} 22. Kh1
{[%clk 0:00:20.2]} 22... Qxg5 {[%clk 0:01:17.8]} 23. Qa8+ {[%clk 0:00:20.1]}
23... Kd7 {[%clk 0:01:16.8]} 24. Qxa7+ {[%clk 0:00:18.1]} 24... Kc6 {[%clk
0:01:06.7]} 25. Qa6+ {[%clk 0:00:17.3]} 25... Kc5 {[%clk 0:00:59.9]} 26. Qa3+
{[%clk 0:00:17]} 26... Kb6 {[%clk 0:00:58.2]} 27. Qxb2 {[%clk 0:00:17.2]} 27...
Rd2 {[%clk 0:00:56.9]} 0-1

[Event "*** SCC Grand Prix: Titled Tuesday Blitz"]
[Site "Chess.com"]
[Date "2020.07.07"]
[Round "6"]
[White "David_Paravyan"]
[Black "Msb2"]
[Result "0-1"]
[WhiteElo "2976"]
[BlackElo "2865"]
[TimeControl "180+1"]
[EndTime "11:05:20 PDT"]
[Termination "Msb2 won by resignation"]

1. e4 {[%clk 0:03:00.9]} 1... e6 {[%clk 0:03:00.1]} 2. d4 {[%clk 0:03:01]} 2...
d5 {[%clk 0:03:00.8]} 3. Nc3 {[%clk 0:03:01.4]} 3... Nf6 {[%clk 0:03:01.1]} 4.
Bg5 {[%clk 0:03:01.9]} 4... dxe4 {[%clk 0:03:01]} 5. Nxe4 {[%clk 0:03:02.2]}
5... Be7 {[%clk 0:03:01.4]} 6. Nxf6+ {[%clk 0:03:02]} 6... Bxf6 {[%clk
0:03:02.3]} 7. Bxf6 {[%clk 0:03:02.6]} 7... Qxf6 {[%clk 0:03:03.2]} 8. Nf3
{[%clk 0:03:03.2]} 8... O-O {[%clk 0:03:03.6]} 9. Qd3 {[%clk 0:03:02.4]} 9... c5
{[%clk 0:02:55]} 10. O-O-O {[%clk 0:03:02.2]} 10... Nc6 {[%clk 0:02:47.4]} 11.
Qe4 {[%clk 0:02:51.7]} 11... Rd8 {[%clk 0:02:36.6]} 12. Bd3 {[%clk 0:02:08]}
12... g6 {[%clk 0:02:33.2]} 13. dxc5 {[%clk 0:02:01.5]} 13... e5 {[%clk
0:02:33.2]} 14. a3 {[%clk 0:01:07.3]} 14... Bf5 {[%clk 0:02:06.8]} 15. Qh4
{[%clk 0:01:06.2]} 15... Qxh4 {[%clk 0:01:50.5]} 16. Nxh4 {[%clk 0:01:07.1]}
16... Bxd3 {[%clk 0:01:51.2]} 17. Rxd3 {[%clk 0:00:58.2]} 17... Rxd3 {[%clk
0:01:51.3]} 18. cxd3 {[%clk 0:00:59.1]} 18... Rd8 {[%clk 0:01:52]} 19. Rd1
{[%clk 0:00:55.8]} 19... a5 {[%clk 0:01:51.9]} 20. Kd2 {[%clk 0:00:19.8]} 20...
Rd5 {[%clk 0:01:51.9]} 21. Rc1 {[%clk 0:00:15.8]} 21... e4 {[%clk 0:01:52.1]}
22. Ke3 {[%clk 0:00:14.1]} 22... Rxd3+ {[%clk 0:01:48.3]} 23. Kxe4 {[%clk
0:00:14.3]} 23... Rd4+ {[%clk 0:01:48.6]} 24. Ke3 {[%clk 0:00:12]} 24... Rxh4
{[%clk 0:01:49.5]} 25. h3 {[%clk 0:00:12.7]} 25... Rd4 {[%clk 0:01:46.8]} 26. f4
{[%clk 0:00:10.2]} 26... f5 {[%clk 0:01:45.1]} 27. g3 {[%clk 0:00:10.2]} 27...
Kf7 {[%clk 0:01:45.3]} 28. h4 {[%clk 0:00:08.8]} 28... a4 {[%clk 0:01:45]} 29.
Rc2 {[%clk 0:00:08.8]} 29... Re4+ {[%clk 0:01:45]} 30. Kd3 {[%clk 0:00:08.7]}
30... Ke6 {[%clk 0:01:41.9]} 31. h5 {[%clk 0:00:08.3]} 31... Kd5 {[%clk
0:01:41.2]} 32. Rh2 {[%clk 0:00:08]} 32... Kxc5 {[%clk 0:01:35.9]} 33. hxg6
{[%clk 0:00:08.4]} 33... hxg6 {[%clk 0:01:36.8]} 34. Rh7 {[%clk 0:00:08.7]}
34... b5 {[%clk 0:01:36.4]} 35. Rf7 {[%clk 0:00:08.6]} 35... Re6 {[%clk
0:01:36.2]} 36. Rc7 {[%clk 0:00:07.7]} 36... Kd5 {[%clk 0:01:35.5]} 37. Rd7+
{[%clk 0:00:08.2]} 37... Rd6 {[%clk 0:01:35.9]} 38. Rg7 {[%clk 0:00:08.7]} 38...
Kc5+ {[%clk 0:01:33.6]} 39. Ke3 {[%clk 0:00:08.8]} 39... Kc4 {[%clk 0:01:33.1]}
40. Rb7 {[%clk 0:00:07.7]} 40... Nd4 {[%clk 0:01:31.1]} 0-1

[Event "*** SCC Grand Prix: Titled Tuesday Blitz"]
[Site "Chess.com"]
[Date "2020.07.07"]
[Round "6"]
[White "zmeeed67"]
[Black "fridaywins"]
[Result "1-0"]
[WhiteElo "2439"]
[BlackElo "2287"]
[TimeControl "180+1"]
[EndTime "11:05:20 PDT"]
[Termination "zmeeed67 won by resignation"]

1. d4 {[%clk 0:02:34.7]} 1... Nf6 {[%clk 0:02:58]} 2. c4 {[%clk 0:02:34.9]} 2...
g6 {[%clk 0:02:57.9]} 3. Nc3 {[%clk 0:02:35.4]} 3... Bg7 {[%clk 0:02:57.9]} 4.
Nf3 {[%clk 0:02:35.6]} 4... O-O {[%clk 0:02:58.8]} 5. Bg5 {[%clk 0:02:35.7]}
5... h6 {[%clk 0:02:52.5]} 6. Bh4 {[%clk 0:02:35.4]} 6... c5 {[%clk 0:02:52]} 7.
e3 {[%clk 0:02:35.5]} 7... cxd4 {[%clk 0:02:41.1]} 8. exd4 {[%clk 0:02:36.4]}
8... d5 {[%clk 0:02:36.8]} 9. Bxf6 {[%clk 0:02:36.4]} 9... Bxf6 {[%clk 0:02:32]}
10. cxd5 {[%clk 0:02:36.6]} 10... Qb6 {[%clk 0:02:01.4]} 11. Qd2 {[%clk
0:02:17]} 11... g5 {[%clk 0:01:35.5]} 12. Bc4 {[%clk 0:02:06.9]} 12... Bf5
{[%clk 0:01:21.9]} 13. O-O {[%clk 0:02:01.6]} 13... Nd7 {[%clk 0:01:21.2]} 14.
Rfe1 {[%clk 0:02:01.4]} 14... Rac8 {[%clk 0:01:19.3]} 15. Bb3 {[%clk 0:02:01.2]}
15... Kg7 {[%clk 0:00:59.7]} 16. Ne5 {[%clk 0:01:42.7]} 16... a6 {[%clk
0:00:56.1]} 17. Rad1 {[%clk 0:01:35.6]} 17... Qd6 {[%clk 0:00:52.3]} 18. Qe3
{[%clk 0:01:08.2]} 18... Nb6 {[%clk 0:00:39.5]} 19. Qf3 {[%clk 0:00:44.1]} 19...
Bg6 {[%clk 0:00:31.1]} 20. Nxg6 {[%clk 0:00:39.1]} 20... fxg6 {[%clk 0:00:30.7]}
21. Re6 {[%clk 0:00:30.1]} 21... Qf4 {[%clk 0:00:29.6]} 22. Qxf4 {[%clk
0:00:28.4]} 22... gxf4 {[%clk 0:00:29.6]} 23. Rxb6 {[%clk 0:00:28.8]} 1-0

[Event "*** SCC Grand Prix: Titled Tuesday Blitz"]
[Site "Chess.com"]
[Date "2020.07.07"]
[Round "6"]
[White "Michaelson_11"]
[Black "czasnaszachy"]
[Result "1/2-1/2"]
[WhiteElo "2102"]
[BlackElo "2239"]
[TimeControl "180+1"]
[EndTime "11:05:20 PDT"]
[Termination "Game drawn by repetition"]

1. e4 {[%clk 0:03:00.9]} 1... c5 {[%clk 0:02:58]} 2. Nc3 {[%clk 0:02:59.7]} 2...
d6 {[%clk 0:02:56.1]} 3. d4 {[%clk 0:02:57.1]} 3... cxd4 {[%clk 0:02:55.8]} 4.
Qxd4 {[%clk 0:02:58]} 4... Nc6 {[%clk 0:02:53.6]} 5. Qd2 {[%clk 0:02:58]} 5...
Nf6 {[%clk 0:02:52.5]} 6. b3 {[%clk 0:02:58.9]} 6... g6 {[%clk 0:02:51.2]} 7.
Bb2 {[%clk 0:02:59.2]} 7... Bg7 {[%clk 0:02:51.4]} 8. O-O-O {[%clk 0:02:59.7]}
8... O-O {[%clk 0:02:38.4]} 9. f3 {[%clk 0:02:55.2]} 9... Qa5 {[%clk 0:02:13.2]}
10. Kb1 {[%clk 0:02:52]} 10... a6 {[%clk 0:02:06.3]} 11. g4 {[%clk 0:02:46.9]}
11... b5 {[%clk 0:02:02.5]} 12. h4 {[%clk 0:02:47.4]} 12... h5 {[%clk
0:01:57.2]} 13. gxh5 {[%clk 0:02:41.9]} 13... Nxh5 {[%clk 0:01:57]} 14. Bh3
{[%clk 0:02:27.7]} 14... Bxh3 {[%clk 0:01:43.9]} 15. Nxh3 {[%clk 0:02:28.6]}
15... b4 {[%clk 0:01:31.9]} 16. Na4 {[%clk 0:02:03.5]} 16... Bxb2 {[%clk
0:01:27.2]} 17. Nxb2 {[%clk 0:02:04.4]} 17... Na7 {[%clk 0:01:21]} 18. Nf4
{[%clk 0:01:46.5]} 18... Nb5 {[%clk 0:00:51.5]} 19. Nd5 {[%clk 0:01:35]} 19...
Na3+ {[%clk 0:00:38.6]} 20. Ka1 {[%clk 0:01:30.4]} 20... Rab8 {[%clk 0:00:28.4]}
21. Rhg1 {[%clk 0:01:19.9]} 21... e6 {[%clk 0:00:27.5]} 22. Ne7+ {[%clk
0:01:08.6]} 22... Kh7 {[%clk 0:00:22.4]} 23. Nc6 {[%clk 0:01:04]} 23... Qc5
{[%clk 0:00:16]} 24. Nxb8 {[%clk 0:00:53.7]} 24... Nxc2+ {[%clk 0:00:15.1]} 25.
Kb1 {[%clk 0:00:54.6]} 25... Na3+ {[%clk 0:00:14.9]} 26. Ka1 {[%clk 0:00:54.8]}
26... Nc2+ {[%clk 0:00:12.6]} 27. Kb1 {[%clk 0:00:54.2]} 27... Na3+ {[%clk
0:00:11.5]} 28. Ka1 {[%clk 0:00:54.5]} 28... Nc2+ {[%clk 0:00:11.6]} 1/2-1/2

[Event "*** SCC Grand Prix: Titled Tuesday Blitz"]
[Site "Chess.com"]
[Date "2020.07.07"]
[Round "6"]
[White "Micki-taryan"]
[Black "WashUntilHoles"]
[Result "1-0"]
[WhiteElo "3043"]
[BlackElo "2734"]
[TimeControl "180+1"]
[EndTime "11:05:23 PDT"]
[Termination "Micki-taryan won on time"]

1. Nf3 {[%clk 0:03:00.9]} 1... Nf6 {[%clk 0:03:00]} 2. d4 {[%clk 0:02:57.4]}
2... g6 {[%clk 0:03:00.1]} 3. Nc3 {[%clk 0:02:57.1]} 3... d5 {[%clk 0:02:59.8]}
4. Bf4 {[%clk 0:02:57.1]} 4... Bg7 {[%clk 0:03:00.4]} 5. Nb5 {[%clk 0:02:57.3]}
5... Na6 {[%clk 0:02:59.9]} 6. e3 {[%clk 0:02:57.8]} 6... O-O {[%clk 0:02:58.7]}
7. h4 {[%clk 0:02:56.2]} 7... h5 {[%clk 0:02:57.6]} 8. Be2 {[%clk 0:02:55.9]}
8... c6 {[%clk 0:02:42.1]} 9. Nc3 {[%clk 0:02:55.4]} 9... c5 {[%clk 0:02:36.9]}
10. Ne5 {[%clk 0:02:54.2]} 10... cxd4 {[%clk 0:02:31.7]} 11. exd4 {[%clk
0:02:55.1]} 11... Nb4 {[%clk 0:02:31.5]} 12. a3 {[%clk 0:02:21.6]} 12... Nc6
{[%clk 0:02:31.4]} 13. O-O {[%clk 0:02:21.6]} 13... Bf5 {[%clk 0:02:23.1]} 14.
Bf3 {[%clk 0:02:20.4]} 14... Rc8 {[%clk 0:02:21.3]} 15. Re1 {[%clk 0:02:19.4]}
15... e6 {[%clk 0:02:19]} 16. Bg5 {[%clk 0:02:16.5]} 16... Qc7 {[%clk
0:01:56.3]} 17. Nb5 {[%clk 0:02:14.3]} 17... Qe7 {[%clk 0:01:41.9]} 18. Bxd5
{[%clk 0:02:02.8]} 18... Na5 {[%clk 0:00:55]} 19. Be4 {[%clk 0:01:38.5]} 19...
Bxe4 {[%clk 0:00:51.7]} 20. Rxe4 {[%clk 0:01:38.5]} 20... a6 {[%clk 0:00:41.8]}
21. Nc3 {[%clk 0:01:37.3]} 21... Qc7 {[%clk 0:00:42.3]} 22. Re2 {[%clk
0:01:32.5]} 22... Nd7 {[%clk 0:00:38.6]} 23. Ne4 {[%clk 0:01:23.7]} 23... Nxe5
{[%clk 0:00:12.4]} 24. dxe5 {[%clk 0:01:24.6]} 24... Bxe5 {[%clk 0:00:13.2]} 25.
Nf6+ {[%clk 0:01:24.7]} 25... Bxf6 {[%clk 0:00:13.7]} 26. Bxf6 {[%clk
0:01:25.6]} 26... Qf4 {[%clk 0:00:12.3]} 27. Bc3 {[%clk 0:01:13.9]} 27... Rfd8
{[%clk 0:00:09.4]} 28. Qe1 {[%clk 0:01:12.3]} 28... Nc6 {[%clk 0:00:07.6]} 29.
Re4 {[%clk 0:01:12]} 29... Qf5 {[%clk 0:00:07.7]} 30. Qe3 {[%clk 0:01:12.5]}
30... Kh7 {[%clk 0:00:05.4]} 31. Rf4 {[%clk 0:01:11.8]} 1-0

[Event "*** SCC Grand Prix: Titled Tuesday Blitz"]
[Site "Chess.com"]
[Date "2020.07.07"]
[Round "6"]
[White "gliglu"]
[Black "MisiekZielony"]
[Result "1-0"]
[WhiteElo "2403"]
[BlackElo "2200"]
[TimeControl "180+1"]
[EndTime "11:05:23 PDT"]
[Termination "gliglu won on time"]

1. d4 {[%clk 0:03:00.9]} 1... d5 {[%clk 0:02:59.1]} 2. c4 {[%clk 0:02:59.6]}
2... c6 {[%clk 0:02:59.4]} 3. cxd5 {[%clk 0:02:59.5]} 3... cxd5 {[%clk
0:02:59.4]} 4. Nc3 {[%clk 0:03:00.1]} 4... Nf6 {[%clk 0:02:59.1]} 5. Bf4 {[%clk
0:02:59.7]} 5... Nc6 {[%clk 0:02:55.9]} 6. e3 {[%clk 0:02:59.3]} 6... a6 {[%clk
0:02:55.4]} 7. Bd3 {[%clk 0:02:57.8]} 7... e6 {[%clk 0:02:53.8]} 8. Rc1 {[%clk
0:02:55.8]} 8... Be7 {[%clk 0:02:51.4]} 9. Nf3 {[%clk 0:02:54.6]} 9... O-O
{[%clk 0:02:51.3]} 10. O-O {[%clk 0:02:53.8]} 10... Nh5 {[%clk 0:02:51.1]} 11.
Be5 {[%clk 0:02:53.3]} 11... f5 {[%clk 0:02:45.8]} 12. Nd2 {[%clk 0:02:46.1]}
12... Nf6 {[%clk 0:02:42]} 13. f4 {[%clk 0:02:45]} 13... Ne4 {[%clk 0:02:38.2]}
14. Ndxe4 {[%clk 0:02:31.5]} 14... fxe4 {[%clk 0:02:22.8]} 15. Be2 {[%clk
0:02:30.8]} 15... Nxe5 {[%clk 0:02:22.5]} 16. fxe5 {[%clk 0:02:28.9]} 16... Bd7
{[%clk 0:02:05.8]} 17. Qb3 {[%clk 0:02:22.2]} 17... Rxf1+ {[%clk 0:01:23.4]} 18.
Bxf1 {[%clk 0:02:21.1]} 18... Bg5 {[%clk 0:01:14.6]} 19. Re1 {[%clk 0:02:13.8]}
19... b5 {[%clk 0:01:12.9]} 20. Nxd5 {[%clk 0:02:04.6]} 20... exd5 {[%clk
0:00:53.1]} 21. Qxd5+ {[%clk 0:02:03.6]} 21... Kh8 {[%clk 0:00:51.8]} 22. e6
{[%clk 0:02:03.7]} 22... Be8 {[%clk 0:00:29.6]} 23. Qxe4 {[%clk 0:02:03.5]}
23... Rc8 {[%clk 0:00:28.7]} 24. Qf3 {[%clk 0:01:37]} 24... Bg6 {[%clk
0:00:19.6]} 25. d5 {[%clk 0:01:36]} 25... h6 {[%clk 0:00:11.5]} 26. e4 {[%clk
0:01:35.6]} 26... Qb6+ {[%clk 0:00:08.2]} 27. Kh1 {[%clk 0:01:32.7]} 27... Rc4
{[%clk 0:00:03.8]} 28. Bxc4 {[%clk 0:01:26.1]} 28... bxc4 {[%clk 0:00:03.7]} 29.
Qc3 {[%clk 0:01:20.4]} 29... Qf2 {[%clk 0:00:02.3]} 30. e7 {[%clk 0:01:08.6]}
1-0

[Event "*** SCC Grand Prix: Titled Tuesday Blitz"]
[Site "Chess.com"]
[Date "2020.07.07"]
[Round "6"]
[White "m-garcett"]
[Black "ElCoachRene"]
[Result "1-0"]
[WhiteElo "2079"]
[BlackElo "2211"]
[TimeControl "180+1"]
[EndTime "11:05:23 PDT"]
[Termination "m-garcett won by resignation"]

1. e4 {[%clk 0:02:29.9]} 1... Nc6 {[%clk 0:02:58.7]} 2. Nf3 {[%clk 0:02:28.7]}
2... e5 {[%clk 0:02:57.6]} 3. Bb5 {[%clk 0:02:27.7]} 3... Nge7 {[%clk
0:02:56.8]} 4. c3 {[%clk 0:02:26.5]} 4... g6 {[%clk 0:02:55.4]} 5. O-O {[%clk
0:02:26.1]} 5... a6 {[%clk 0:02:55]} 6. Ba4 {[%clk 0:02:25.2]} 6... Bg7 {[%clk
0:02:55]} 7. d4 {[%clk 0:02:22.9]} 7... b5 {[%clk 0:02:51.3]} 8. Bb3 {[%clk
0:02:14.2]} 8... exd4 {[%clk 0:02:47.4]} 9. cxd4 {[%clk 0:02:14.2]} 9... O-O
{[%clk 0:02:45.6]} 10. a3 {[%clk 0:02:10.5]} 10... d5 {[%clk 0:02:43.7]} 11. e5
{[%clk 0:02:02]} 11... Na5 {[%clk 0:02:39.5]} 12. Bc2 {[%clk 0:01:59.7]} 12...
h6 {[%clk 0:02:36.4]} 13. Nc3 {[%clk 0:01:56.6]} 13... Be6 {[%clk 0:02:34.8]}
14. Be3 {[%clk 0:01:40.2]} 14... Nc4 {[%clk 0:02:32.2]} 15. b3 {[%clk
0:01:37.8]} 15... Nxe3 {[%clk 0:02:28.3]} 16. fxe3 {[%clk 0:01:38.7]} 16... Rc8
{[%clk 0:02:21.2]} 17. b4 {[%clk 0:01:36.7]} 17... Rb8 {[%clk 0:01:56]} 18. Ne2
{[%clk 0:01:30]} 18... Nc8 {[%clk 0:01:49.7]} 19. Nf4 {[%clk 0:01:24.8]} 19...
Bg4 {[%clk 0:01:29.7]} 20. h3 {[%clk 0:01:17.9]} 20... Bxf3 {[%clk 0:01:29.3]}
21. Qxf3 {[%clk 0:01:18.8]} 21... c6 {[%clk 0:01:28.4]} 22. e6 {[%clk
0:00:49.7]} 22... fxe6 {[%clk 0:01:05]} 23. Qg4 {[%clk 0:00:48.7]} 23... Qg5
{[%clk 0:00:40.2]} 24. Qxe6+ {[%clk 0:00:47.2]} 1-0